bitfinex/quotes_ETHUSD_20250406
["timestamp","ask_amount","ask_price","bid_price","bid_amount"]
[1743983306003,3.0,1579.8,1579.4,6.33149]
[1743983306297,1.0163,1579.9,1579.4,6.33149]
[1743983306596,41.93047272,1580.1,1579.5,6.3309]
[1743983306597,58.42855272,1580.1,1579.5,6.3309]
[1743983306797,58.42855272,1580.1,1579.5,6.33104]
[1743983307097,4.94277272,1580.1,1579.9,6.3293]
[1743983307289,3.92647272,1580.1,1579.8,6.3297]
[1743983307686,9.152,1580.3,1579.7,1.0564]
[1743983307875,6.32859,1580.2,1579.7,1.0564]
[1743983308087,6.32912,1580.0,1579.5,1.0367]
[1743983308299,0.632859,1580.1,1579.6,6.33047]
[1743983308502,0.632859,1580.1,1579.7,6.33017]
[1743983308810,9.152,1580.3,1579.8,6.32989]
[1743983309190,9.152,1580.3,1579.8,6.39318262]
[1743983309386,9.152,1580.3,1579.8,6.32989]
[1743983310005,6.32832,1580.2,1579.6,12.66089]
[1743983310211,6.32832,1580.2,1579.7,6.3935862]
[1743983310212,0.632832,1580.1,1579.7,6.3935862]
[1743983310422,15.95902902,1580.6,1580.0,6.32883]
[1743983310625,15.95902902,1580.6,1579.8,1.0586]
[1743983310626,6.32852,1580.2,1579.8,1.0586]
[1743983311041,6.32892,1580.1,1579.6,6.33034]
[1743983311242,0.632892,1580.0,1579.5,1.0394]
[1743983311535,6.962392,1580.0,1579.5,1.0394]
[1743983311734,6.32994,1579.8,1579.5,1.0394]
[1743983311921,12.6594,1579.9,1579.4,6.33117]
[1743983312096,0.632892,1580.0,1579.5,6.33109]
[1743983312603,3.632892,1580.0,1579.5,6.39439939]
[1743983312823,6.6928192,1579.9,1579.4,6.33135]
[1743983313207,6.33052,1579.7,1579.2,7.29711]
[1743983313605,0.3632892,1579.9,1579.5,6.33092]
[1743983313803,6.33001,1579.8,1579.3,6.33156]
[1743983314009,0.9596,1580.1,1579.6,13.71685]
[1743983314392,7.28855,1580.1,1579.6,7.38632]
[1743983314661,0.9906,1580.3,1579.9,6.32941]
[1743983314830,6.3286,1580.2,1579.7,6.33027]
[1743983315029,7.06052,1580.2,1579.6,7.38627]
[1743983315229,7.06052,1580.2,1579.7,6.33025]
[1743983315432,0.9906,1580.3,1579.9,6.32931]
[1743983315630,3.0,1580.4,1579.9,6.3295]
[1743983315862,22.80483,1580.5,1580.0,6.32905]
[1743983316057,6.32756,1580.4,1580.0,6.32905]
[1743983316260,3.0,1580.3,1579.9,6.3295]
[1743983316560,45.36699,1580.7,1580.2,6.32825]
[1743983316730,15.47075,1580.6,1580.1,6.32869]
[1743983316934,15.47075,1580.6,1580.1,6.32838]
[1743983317252,6.32717,1580.5,1580.0,7.34112]
[1743983317753,9.32754,1580.4,1580.0,1.0122]
[1743983317953,10.893011,1580.4,1580.0,1.0122]
[1743983318277,10.893011,1580.4,1580.0,7.34112]
[1743983318278,4.565471,1580.4,1580.0,7.34112]
[1743983318563,4.565471,1580.4,1580.1,6.32863]
[1743983318750,4.565471,1580.4,1580.0,13.67001]
[1743983319262,4.565471,1580.4,1580.0,7.34109]
[1743983319666,45.36681,1580.7,1580.2,6.32804]
[1743983320032,45.36681,1580.7,1580.1,6.3284]
[1743983320231,6.3279,1580.4,1580.0,1.0122]
[1743983320431,6.32895,1580.1,1579.8,1.015]
[1743983320653,6.32951,1579.9,1579.5,1.015]
[1743983321056,6.3302,1579.8,1579.3,7.33435]
[1743983321239,0.9903,1579.9,1579.3,7.33403]
[1743983321445,6.33009,1579.8,1579.3,7.33403]
[1743983321642,7.32018,1579.9,1579.4,6.39464809]
[1743983321851,3.0,1580.0,1579.6,6.3305]
[1743983322056,1.0412,1580.2,1579.4,7.70418781]
[1743983322255,6.32901,1580.1,1579.6,6.33039]
[1743983322567,10.36953,1580.2,1579.7,6.33018]
[1743983322941,6.32895,1580.1,1579.7,6.33018]
[1743983323159,7.998798,1580.1,1579.7,6.33018]
[1743983323477,7.998798,1580.1,1579.6,6.33066]
[1743983323773,7.998798,1580.1,1579.8,10.0]
[1743983323989,10.15,1580.5,1580.0,6.32885]
[1743983324196,45.34633,1580.7,1580.2,6.32811]
[1743983324344,3.0,1580.6,1580.2,6.32811]
[1743983324743,45.34633,1580.7,1580.2,6.32811]
[1743983324977,45.34633,1580.7,1580.2,12.65624]
[1743983325215,39.02,1580.7,1580.1,1.0396]
[1743983325499,15.65401,1580.6,1580.1,7.36822]
[1743983325679,9.32694,1580.6,1580.1,7.36822]
[1743983325865,6.32737,1580.5,1580.0,6.32907]
[1743983326168,6.32833,1580.2,1579.8,11.0364]
[1743983326370,3.0,1580.4,1579.8,17.36628]
[1743983326371,13.68152,1580.3,1579.8,17.36628]
[1743983326577,4.025,1580.3,1579.8,17.36599]
[1743983326742,4.025,1580.3,1579.8,11.0364]
[1743983326743,6.32868,1580.2,1579.8,11.0364]
[1743983326963,6.32905,1580.1,1579.8,10.0]
[1743983327302,10.35451,1579.9,1579.8,10.0]
[1743983328662,3.0,1579.9,1579.8,10.0]
[1743983328839,9.32951,1579.9,1579.8,10.0]
[1743983329048,10.262457,1579.9,1579.8,10.0]
[1743983329865,3.932947,1579.9,1579.8,10.0]
[1743983330064,3.0,1579.9,1579.8,10.0]
[1743983330266,6.32947,1580.0,1579.8,10.0]
[1743983331164,1.0283,1580.1,1579.8,10.0]
[1743983331364,16.45414,1580.4,1579.9,6.32923]
[1743983331882,10.1266,1580.4,1580.0,6.329]
[1743983332085,1.041,1580.6,1579.8,10.0]
[1743983332259,6.32632,1580.7,1579.8,10.0]
[1743983332260,6.32651,1580.7,1580.2,6.32807]
[1743983332578,6.32701,1580.6,1580.1,12.65677]
[1743983333106,3.92647272,1580.2,1580.1,12.65677]
[1743983333383,3.92647272,1580.2,1580.1,14.964347]
[1743983333384,2.76080112,1580.2,1580.1,14.964347]
[1743983334454,2.76080112,1580.2,1580.1,7.37028]
[1743983334659,2.76080112,1580.2,1580.1,1.0419]
[1743983334844,2.76080112,1580.2,1579.9,6.32918]
[1743983335049,2.76080112,1580.2,1579.9,12.65836]
[1743983335352,2.76080112,1580.2,1580.0,6.3289]
[1743983335771,9.08935112,1580.2,1579.8,10.7539]
[1743983335979,0.98530511,1580.2,1579.8,17.08362]
[1743983336481,6.32873,1580.1,1579.8,10.7539]
[1743983336688,6.32873,1580.1,1579.8,10.0]
[1743983337159,3.7637,1580.3,1579.9,6.32924]
[1743983337484,3.0,1580.4,1580.0,0.632924]
[1743983337669,9.924,1580.5,1580.1,6.32849]
[1743983337856,3.0,1580.6,1580.1,6.32845]
[1743983337857,9.32698,1580.6,1580.1,6.32845]
[1743983338052,6.32698,1580.6,1580.1,6.32845]
[1743983338447,3.0,1580.6,1580.2,6.32813]
[1743983338852,9.32672,1580.6,1580.2,6.32813]
[1743983339049,15.65381,1580.6,1580.1,6.32845]
[1743983339492,15.65381,1580.6,1579.8,10.0]
[1743983339493,6.32875,1580.1,1579.8,10.0]
[1743983339703,3.0,1580.0,1579.8,16.32991]
[1743983339849,3.0,1580.0,1579.8,10.0]
[1743983340054,10.54154,1580.0,1579.8,10.0]
[1743983340354,9.32944,1580.0,1579.8,10.0]
[1743983340609,9.32951,1579.9,1579.8,10.0]
[1743983340770,16.34698059,1579.9,1579.8,10.0]
[1743983341283,17.3678392,1579.9,1579.8,10.0]
[1743983341857,17.3678392,1579.9,1579.8,5.609475]
[1743983342283,10.61146861,1579.9,1579.8,5.609475]
[1743983342492,19.73146861,1579.9,1579.8,5.609475]
[1743983342786,20.28146861,1579.9,1579.8,1.609575]
[1743983342959,9.33232,1579.2,1579.1,0.02]
[1743983343363,9.119,1579.3,1579.1,0.02]
[1743983343579,15.45113,1579.3,1579.1,0.02]
[1743983343883,9.119,1579.3,1579.1,0.02]
[1743983344077,9.33114,1579.5,1579.1,0.02]
[1743983344405,6.33152,1579.4,1579.1,0.02]
[1743983344562,6.33141,1579.5,1579.1,0.02]
[1743983344891,6.3321,1579.3,1579.1,0.02]
[1743983345068,9.33232,1579.2,1579.1,0.02]
[1743983345864,3.0,1579.2,1579.1,0.02]
[1743983346074,6.33192,1579.3,1579.1,0.02]
[1743983346666,3.95968251,1579.2,1579.1,0.02]
[1743983349090,3.95968251,1579.2,1579.1,7.20394981]
[1743983350095,9.116,1579.8,1579.4,6.33124]
[1743983350273,9.116,1579.8,1579.5,7.1105]
[1743983350475,16.22487,1580.1,1579.5,7.1103]
[1743983350675,15.44367,1580.2,1579.7,6.32993]
[1743983350868,15.44367,1580.2,1579.8,6.32973]
[1743983350869,9.115,1580.2,1579.8,6.32973]
[1743983351086,0.789,1580.3,1579.9,6.32934]
[1743983351274,0.789,1580.3,1579.9,6.32932]
[1743983351275,3.789,1580.3,1579.9,6.32932]
[1743983351474,0.789,1580.3,1579.9,6.32931]
[1743983351794,0.7646,1580.6,1580.3,6.32779]
[1743983352007,7.14562,1580.9,1580.4,6.32745]
[1743983352208,3.0,1580.7,1580.3,6.32759]
[1743983352506,7.14562,1580.9,1580.4,6.32748]
[1743983352821,9.114,1581.0,1580.4,6.32716]
[1743983353130,15.43941,1581.0,1580.5,12.65375]
[1743983353331,6.3256,1580.9,1580.5,6.32683]
[1743983353617,3.0,1580.9,1580.6,6.32671]
[1743983353829,3.0,1580.9,1580.5,6.32678]
[1743983354432,3.0,1580.9,1580.6,6.32671]
[1743983354890,3.0,1580.9,1580.5,6.32678]
[1743983355803,3.0,1580.9,1580.6,6.32642]
[1743983356180,3.0,1580.9,1580.5,7.1284]
[1743983356594,3.0,1580.9,1580.5,13.45522]
[1743983356775,3.0,1580.9,1580.5,7.12812]
[1743983357176,3.0,1580.9,1580.5,7.12808]
[1743983357403,3.0,1580.9,1580.5,6.32678]
[1743983357906,3.0,1580.9,1580.3,6.80589434]
[1743983358109,3.0,1581.1,1580.6,0.8225]
[1743983358276,9.32483,1581.1,1580.6,7.14903]
[1743983358473,3.0,1581.3,1580.9,6.32546]
[1743983358682,0.8282,1581.4,1581.3,6.32391]
[1743983358977,0.8233,1581.9,1581.4,6.32332]
[1743983359179,0.8233,1581.9,1581.4,7.07749]
[1743983359408,7.14489,1581.9,1581.4,7.07749]
[1743983359613,0.02,1581.9,1581.7,6.32231]
[1743983359799,0.02,1581.9,1581.4,0.7542]
[1743983360010,0.02,1581.9,1581.6,6.32251]
[1743983360509,0.02,1581.9,1581.7,6.32221]
[1743983361021,0.02,1581.9,1581.7,12.64419]
[1743983361229,0.02,1581.9,1581.8,6.32191]
[1743983361411,0.02,1581.9,1581.8,7.20122341]
[1743983361621,0.02,1581.9,1581.8,8.402408]
[1743983361928,0.02,1581.9,1581.6,6.32269]
[1743983362093,0.02,1581.9,1581.5,7.13895]
[1743983362425,9.34171,1581.9,1581.5,0.8161]
[1743983362591,9.34171,1581.9,1581.4,6.3235]
[1743983362786,3.0,1581.7,1581.3,7.13972]
[1743983363014,3.0,1581.7,1581.3,13.46345]
[1743983363208,9.32236,1581.7,1581.3,0.8161]
[1743983363407,6.32332,1581.5,1581.0,7.15536]
[1743983363614,3.7915,1581.3,1580.7,7.10109]
[1743983363923,3.0,1581.1,1580.7,7.10109]
[1743983364120,3.7915,1581.3,1580.8,6.32589]
[1743983364421,0.7915,1581.6,1580.9,6.32551]
[1743983364596,3.7915,1581.6,1581.1,0.7748]
[1743983364795,10.11443,1581.6,1581.1,7.09946]
[1743983365197,10.11443,1581.6,1581.2,6.32421]
[1743983365198,3.7915,1581.6,1581.2,6.32421]
[1743983365734,3.0,1581.4,1580.9,6.3252]
[1743983365932,9.3237,1581.4,1580.9,6.3252]
[1743983366235,0.7915,1581.6,1581.1,6.32467]
[1743983366418,3.0,1581.6,1581.2,6.32413]
[1743983366790,3.0,1581.6,1581.3,6.32357]
[1743983367502,3.0,1581.6,1581.2,6.32425]
[1743983368044,3.8074,1581.8,1581.3,12.64752]
[1743983368242,3.8074,1581.8,1581.4,6.38648834]
[1743983368446,3.8074,1581.8,1581.3,6.32391]
[1743983368607,6.32239,1581.7,1581.2,7.15639]
[1743983368806,10.12965,1581.8,1581.3,0.0632316]
[1743983369006,10.12965,1581.8,1581.3,6.3868016]
[1743983369206,6.32239,1581.7,1581.2,7.15635]
[1743983369407,6.32273,1581.6,1581.2,0.8321]
[1743983370007,3.0,1581.6,1580.9,7.08781]
[1743983370199,6.32416,1581.3,1580.9,0.7625]
[1743983370432,6.32461,1581.2,1580.7,6.32609]
[1743983370618,0.7982,1581.1,1580.6,6.3267]
[1743983371351,0.7982,1581.1,1580.8,6.32586]
[1743983371551,7.036346,1581.3,1580.9,6.32528]
[1743983371552,3.0,1581.2,1580.9,6.32528]
[1743983371717,3.0,1581.2,1580.8,7.08663]
[1743983372106,6.32471,1581.1,1580.8,0.7609]
[1743983372453,6.32471,1581.1,1580.5,6.32682]
[1743983372454,6.32513,1581.0,1580.5,6.32682]
[1743983372606,7.09837,1580.9,1580.5,6.32685]
[1743983372802,10.09844,1580.9,1580.5,6.32685]
[1743983373115,3.0,1581.0,1580.6,6.3267]
[1743983373322,9.32529,1581.0,1580.5,6.32692]
[1743983373532,9.32529,1581.0,1580.5,6.32678]
[1743983373710,9.32529,1581.0,1580.6,0.06325756]
[1743983373903,3.0,1581.0,1580.6,6.38977756]
[1743983374109,15.40774,1581.1,1580.6,12.71629756]
[1743983374442,21.73278,1581.1,1580.6,6.32652]
[1743983374625,9.32533,1581.0,1580.5,6.32703]
[1743983374823,9.083,1581.1,1580.6,0.06325927]
[1743983375036,9.083,1581.1,1580.6,6.3267]
[1743983375037,6.32528,1581.0,1580.6,6.3267]
[1743983375240,3.0,1581.1,1580.7,6.38934917]
[1743983375410,3.0,1581.1,1580.7,6.32609]
[1743983375611,9.32474,1581.1,1580.7,6.32609]
[1743983375813,3.7727,1581.3,1580.9,6.32541]
[1743983376030,10.09688,1581.3,1580.8,6.32583]
[1743983376340,10.09688,1581.3,1580.8,6.38908115]
[1743983376730,3.7727,1581.3,1581.0,6.32502]
[1743983377441,0.7727,1581.3,1581.0,6.32502]
[1743983377837,7.09678,1581.3,1580.8,7.15579]
[1743983378036,7.806458,1581.3,1580.8,13.48148]
[1743983378337,0.7727,1581.3,1580.8,0.8299]
[1743983378538,0.7727,1581.3,1580.9,0.06325112]
[1743983378746,0.7727,1581.3,1580.8,0.8299]
[1743983378906,7.09694,1581.3,1580.8,13.48126]
[1743983379110,7.09694,1581.3,1580.8,7.15553]
[1743983379457,3.0,1581.0,1580.6,7.07767]
[1743983379606,13.41158,1580.9,1580.4,6.32751]
[1743983379942,7.08572,1580.9,1580.3,7.54364414]
[1743983380110,12.65244,1580.8,1580.3,7.54364414]
[1743983380312,6.32631,1580.7,1580.3,7.0786]
[1743983380507,10.08571,1580.9,1580.4,6.3275]
[1743983380811,10.08571,1580.9,1580.5,6.32709]
[1743983381218,3.7602,1580.9,1580.5,6.39010591]
[1743983381742,3.7602,1580.9,1580.4,6.32749]
[1743983381743,10.0858,1580.9,1580.4,6.32749]
[1743983381906,6.32703,1580.6,1580.1,6.80219816]
[1743983382112,6.32753,1580.4,1580.0,7.15859]
[1743983382334,6.32712,1580.5,1580.0,7.15828]
[1743983382518,6.959832,1580.5,1580.0,7.15828]
[1743983382747,6.32712,1580.5,1580.0,7.15828]
[1743983382968,6.32712,1580.5,1580.0,7.15824]
[1743983383545,6.32673,1580.6,1580.0,0.8295]
[1743983383724,3.0,1580.6,1580.2,6.32814]
[1743983384047,0.7918,1580.7,1580.4,6.3273]
[1743983384354,0.7918,1580.7,1580.4,6.96635755]
[1743983384518,6.3257,1580.9,1580.4,6.96635755]
[1743983384718,6.3257,1580.9,1580.0,7.15847]
[1743983384719,12.8519,1581.0,1580.1,6.32868]
[1743983384917,16.17709,1581.0,1580.5,6.32709]
[1743983385146,6.32585,1580.9,1580.4,13.48711]
[1743983385346,6.32585,1580.9,1580.5,0.0632643]
[1743983385549,3.0,1580.9,1580.5,6.3901243]
[1743983386335,9.32551,1580.9,1580.5,6.3901243]
[1743983386530,9.32551,1580.9,1580.5,0.0632643]
[1743983386858,6.32663,1580.7,1580.2,7.64009622]
[1743983387063,7.09009,1580.6,1580.1,6.32868]
[1743983387355,6.32731,1580.5,1580.1,6.32868]
[1743983387659,7.09009,1580.6,1580.1,6.32868]
[1743983387866,6.3273,1580.5,1580.1,6.32868]
[1743983388021,6.3273,1580.5,1580.0,7.157]
[1743983388222,6.32757,1580.4,1580.0,0.8279]
[1743983388567,13.46913,1580.2,1579.7,7.15615]
[1743983388717,14.27094663,1580.2,1579.7,7.15615]
[1743983388914,6.32879,1580.1,1579.7,7.15615]
[1743983389578,7.14053,1580.2,1579.7,7.15615]
[1743983389579,0.8122,1580.2,1579.7,7.15595]
[1743983389882,3.7771,1580.4,1580.0,6.32877]
[1743983390083,0.7771,1580.4,1580.1,6.32839]
[1743983390480,9.32672,1580.6,1580.0,6.961957]
[1743983390481,3.0,1580.6,1580.2,0.0632823]
[1743983390709,0.7771,1580.7,1580.3,6.32786]
[1743983390883,0.7771,1580.7,1580.4,6.32748]
[1743983391585,0.7771,1580.7,1580.5,6.3271]
[1743983391878,0.7771,1580.7,1580.4,6.32748]
[1743983392087,0.7771,1580.7,1580.4,12.65468]
[1743983392387,0.7771,1580.7,1580.5,6.32706]
[1743983392692,3.0,1580.5,1580.1,7.08164]
[1743983392857,3.7771,1580.7,1580.3,6.32786]
[1743983393055,3.0,1580.7,1580.5,6.32692]
[1743983394205,3.0,1580.7,1580.4,6.32748]
[1743983394556,3.0,1580.7,1580.2,6.32829]
[1743983394757,3.0,1580.7,1580.3,6.32787]
[1743983395582,3.0,1580.7,1580.2,6.3281]
[1743983395583,6.32649,1580.7,1580.2,6.3281]
[1743983395783,3.0,1580.7,1580.3,6.32781]
[1743983395989,3.0,1580.7,1580.3,6.32768]
[1743983396383,9.32648,1580.7,1580.3,6.32768]
[1743983396579,3.0,1580.7,1580.3,6.32768]
[1743983396781,9.32656,1580.7,1580.1,7.6091961]
[1743983396958,9.32656,1580.7,1580.1,7.0815]
[1743983397156,9.32656,1580.7,1580.2,6.32812]
[1743983397390,9.32656,1580.7,1580.3,6.32789]
[1743983397686,15.65318,1580.7,1580.2,6.32812]
[1743983397899,3.0,1580.5,1580.0,6.32909]
[1743983398098,3.0,1580.3,1579.9,7.11187]
[1743983398257,3.0,1580.3,1580.0,6.32885]
[1743983398464,3.0,1580.3,1579.9,7.11161]
[1743983398682,3.0,1580.3,1579.9,13.44095]
[1743983398993,3.0,1580.3,1580.0,6.39237475]
[1743983399495,6.32796,1580.3,1579.9,8.456005]
[1743983399790,6.32796,1580.3,1579.9,7.11191]
[1743983400007,3.0,1580.2,1579.8,6.32987]
[1743983400207,3.0,1580.2,1579.9,6.3295]
[1743983400367,3.0,1580.4,1580.0,6.32894]
[1743983400873,6.32755,1580.4,1579.9,6.3293]
[1743983401192,10.10307,1580.1,1579.7,6.33029]
[1743983401908,10.10307,1580.1,1579.3,15.69872904]
[1743983401909,6.33022,1579.8,1579.3,7.08829]
[1743983402134,6.33089,1579.6,1579.1,13.44132]
[1743983402434,3.0,1579.5,1579.2,6.33213]
[1743983403011,3.0,1579.5,1579.1,7.1091]
[1743983403211,3.0,1579.5,1579.1,6.3525]
[1743983403724,6.33129,1579.5,1579.1,0.02]
[1743983403925,3.7656,1579.4,1579.1,0.02]
[1743983404092,6.33227,1579.3,1579.1,0.02]
[1743983404289,3.7656,1579.4,1579.1,0.02]
[1743983404542,3.7656,1579.4,1579.1,6.35267]
[1743983404921,3.7656,1579.4,1579.1,0.02]
[1743983405519,3.7656,1579.4,1579.1,6.35252]
[1743983405816,9.051,1579.5,1579.2,6.33209]
[1743983406209,0.8314,1579.6,1579.2,6.33209]
[1743983406406,3.8314,1579.6,1579.2,6.33209]
[1743983406612,10.16213,1579.6,1579.2,6.33209]
[1743983406809,10.16213,1579.6,1579.1,6.35269]
[1743983407222,6.33134,1579.5,1579.1,0.02]
[1743983407409,10.16213,1579.6,1579.1,6.35265]
[1743983407923,3.0,1579.2,1579.1,0.02]
[1743983409415,9.33232,1579.2,1579.1,0.02]
[1743983409995,3.0,1579.2,1579.1,0.02]
[1743983410426,9.8709,1579.3,1579.1,0.02]
[1743983410924,6.33113,1579.5,1579.1,0.02]
[1743983411127,45.13664,1579.8,1579.2,7.11599]
[1743983411344,54.18366,1579.8,1579.3,6.33157]
[1743983411540,9.33044,1579.7,1579.2,7.11599]
[1743983411844,54.18366,1579.8,1579.2,7.11566]
[1743983412048,3.0,1579.7,1579.2,7.17897376]
[1743983412229,6.33059,1579.7,1579.2,7.11566]
[1743983412563,0.8017,1579.8,1579.4,6.33121]
[1743983412718,7.12525,1580.0,1579.5,12.66169]
[1743983412909,0.7958,1580.0,1579.3,6.33167]
[1743983413108,6.33078,1579.6,1579.1,6.3527]
[1743983413311,9.33174,1579.4,1579.1,0.02]
[1743983413506,10.12794,1579.4,1579.1,0.02]
[1743983414851,3.0,1579.4,1579.1,6.4158458]
[1743983415042,3.0,1579.4,1579.1,0.02]
[1743983415350,9.33232,1579.2,1579.1,0.02]
[1743983415658,10.08412,1579.2,1579.1,0.02]
[1743983416529,3.7518,1579.2,1579.1,0.02]
[1743983417540,7.08412,1579.2,1579.1,0.02]
[1743983417945,10.08412,1579.2,1579.1,0.02]
[1743983418916,16.84049059,1579.2,1579.1,0.02]
[1743983419453,7.12453,1578.6,1578.1,13.4614]
[1743983419651,13.45943,1578.6,1578.2,1.34614]
[1743983419949,6.33529,1578.5,1578.1,0.788]
[1743983420734,12.67078,1578.5,1578.1,0.02]
[1743983420938,6.33529,1578.5,1578.1,0.02]
[1743983421123,7.12444,1578.6,1578.1,12.69318]
[1743983421330,7.12444,1578.6,1578.1,6.3565]
[1743983421530,7.12444,1578.6,1578.1,6.35649]
[1743983421727,13.45951,1578.6,1578.1,6.35649]
[1743983421927,6.33632,1578.3,1578.1,0.02]
[1743983422148,6.33631,1578.3,1578.1,0.02]
[1743983422427,6.33633,1578.2,1578.1,0.02]
[1743983423048,19.15943,1578.2,1578.1,0.02]
[1743983423454,19.13783,1578.2,1578.1,0.02]
[1743983423658,19.13783,1578.2,1577.1,0.02]
[1743983423659,3.0,1578.1,1577.1,6.3607]
[1743983423834,6.33919,1577.5,1577.1,6.3607]
[1743983424239,7.10345,1577.6,1577.1,6.3607]
[1743983424440,13.44257,1577.6,1577.1,6.3607]
[1743983424756,0.7645,1577.6,1577.2,6.34018]
[1743983424957,13.4675,1577.9,1577.4,6.33934]
[1743983425138,6.33839,1577.7,1577.2,6.34001]
[1743983425342,0.792,1577.9,1577.1,0.02]
[1743983425343,6.33935,1577.5,1577.1,0.02]
[1743983425636,0.8034,1577.6,1577.1,0.02]
[1743983426040,6.33916,1577.5,1577.1,0.02]
[1743983426243,6.339,1577.6,1577.1,0.02]
[1743983426449,6.33974,1577.4,1577.1,0.02]
[1743983426757,0.633974,1577.4,1577.1,0.02]
[1743983427258,7.16854,1577.4,1577.1,0.02]
[1743983427461,0.8287,1577.4,1577.1,0.02]
[1743983427764,6.34034,1577.2,1577.1,0.02]
[1743983427962,10.10474,1577.2,1577.1,0.02]
[1743983428458,0.7644,1577.2,1577.1,0.02]
[1743983428661,3.7605,1577.4,1577.1,0.02]
[1743983428830,0.7605,1577.4,1577.1,0.02]
[1743983429257,0.7605,1577.7,1577.2,6.34013]
[1743983429560,7.12373,1578.0,1577.5,6.33888]
[1743983429930,16.15685,1578.2,1577.6,6.33853]
[1743983430158,6.33691,1578.1,1577.6,12.67693]
[1743983430360,9.3371,1578.1,1577.6,6.3384]
[1743983430557,6.33727,1578.0,1577.5,6.33911]
[1743983430780,6.3371,1578.1,1577.6,6.33851]
[1743983431042,6.33468,1578.7,1578.2,6.33612]
[1743983431246,6.33468,1578.7,1578.1,6.33636]
[1743983431446,0.7546,1578.6,1577.9,7.13399]
[1743983431650,12.92166792,1578.5,1578.0,6.33694]
[1743983431857,6.33576,1578.4,1577.9,7.13399]
[1743983432064,7.21325163,1578.4,1577.9,7.13422]
[1743983432270,0.2026231,1578.3,1578.1,6.33646]
[1743983432636,0.7546,1578.6,1578.2,6.33633]
[1743983432867,0.2026231,1578.5,1578.1,0.06336215]
[1743983433171,6.33577,1578.4,1577.9,7.13405]
[1743983433342,0.2026231,1578.3,1578.0,6.33691]
[1743983433546,0.2026231,1578.3,1577.9,7.13405]
[1743983433938,0.2026231,1578.3,1577.9,13.47136]
[1743983434140,0.2026231,1578.3,1578.0,6.33707]
[1743983434767,6.33578,1578.4,1577.9,0.7967]
[1743983435062,7.17525053,1578.3,1577.8,6.33762]
[1743983435739,6.33654,1578.2,1577.7,0.8155]
[1743983435931,6.33702,1578.1,1577.7,7.15377]
[1743983436177,0.20541253,1578.0,1577.7,6.33828]
[1743983436479,0.20541253,1578.0,1577.8,6.33773]
[1743983436767,0.20541253,1578.0,1577.8,6.33762]
[1743983436969,19.18023,1578.5,1578.1,6.33667]
[1743983437169,0.20541253,1578.4,1578.1,6.33648]
[1743983437338,0.20541253,1578.4,1577.7,6.33807]
[1743983437651,3.0,1578.2,1577.8,6.33763]
[1743983437853,9.33638,1578.2,1577.8,6.33763]
[1743983438039,0.20541253,1578.1,1577.9,6.3372]
[1743983438234,0.7949,1578.1,1577.6,0.8252]
[1743983438544,0.20541253,1578.0,1577.6,7.16388]
[1743983438937,6.54256253,1578.0,1577.6,7.16388]
[1743983439145,6.33758,1577.9,1577.6,0.8252]
[1743983439456,0.20373906,1577.8,1577.4,7.1351]
[1743983439769,9.54167906,1577.8,1577.4,0.7956]
[1743983439946,15.87997906,1577.8,1577.4,0.7956]
[1743983440147,6.33857,1577.7,1577.4,0.7956]
[1743983440342,0.2026231,1577.6,1577.4,7.13494]
[1743983440560,0.2026231,1577.6,1577.4,0.7956]
[1743983440863,0.20088665,1577.5,1577.4,0.7956]
[1743983441072,0.20088665,1577.5,1577.2,6.34034]
[1743983441365,6.33893,1577.6,1577.1,7.799018]
[1743983441586,0.20088665,1577.4,1577.1,7.799018]
[1743983441745,6.33842,1577.7,1577.2,6.34032]
[1743983441936,0.20088665,1577.3,1577.2,6.89032]
[1743983442140,6.33679,1578.1,1577.5,6.33909]
[1743983442141,6.3373,1578.0,1577.5,6.33909]
[1743983442673,0.19852992,1577.9,1577.5,6.33909]
[1743983442870,0.19852992,1577.9,1577.7,6.33815]
[1743983443173,0.19852992,1577.9,1577.7,13.49579]
[1743983443363,9.021,1578.2,1577.8,6.33787]
[1743983443672,9.021,1578.2,1577.8,6.33761]
[1743983444072,9.021,1578.2,1577.8,12.67523]
[1743983444283,6.33553,1578.4,1577.9,6.33752]
[1743983445273,6.33553,1578.4,1577.9,12.67473]
[1743983445442,6.33553,1578.4,1578.0,6.33693]
[1743983445643,3.0,1578.4,1578.0,6.33693]
[1743983445842,7.14172,1578.5,1578.0,6.33693]
[1743983446040,7.14172,1578.5,1577.9,6.33721]
[1743983446246,6.33576,1578.4,1577.9,6.33721]
[1743983446473,3.0,1578.3,1577.9,6.33721]
[1743983446679,9.33603,1578.3,1577.9,6.33721]
[1743983446881,3.0,1578.3,1577.9,6.33721]
[1743983447177,3.0,1578.3,1578.0,6.33708]
[1743983448677,3.0,1578.3,1577.9,6.33721]
[1743983449052,9.33658,1578.2,1577.7,7.1578]
[1743983449252,3.0,1578.2,1577.8,6.33774]
[1743983449981,6.33572,1578.4,1578.0,6.33691]
[1743983450147,6.33616,1578.3,1577.8,12.67564]
[1743983450347,6.33616,1578.3,1577.8,6.33771]
[1743983450649,0.20020447,1578.2,1577.8,6.33771]
[1743983450868,0.20020447,1578.2,1577.9,6.33751]
[1743983451061,0.85384092,1578.2,1577.9,6.33751]